Cogmind - Beta 16 --- EXPLORER MODE // 2025.12.15 @ 11:19:52 Player: K.K.Y. Result: Destroyed by XI-ZNG(R) with Subdweller Beam Cannon Performance ------------- Evolutions (0) 0 Regions Visited (3) 600 Robots Destroyed (45) 225 Value Destroyed (708) 708 Prototype IDs (0) 0 Alien Tech Used (0) 0 Bonus (90) 90 TOTAL SCORE: 1623 Bonus ------- Follower Combat Kills 90 Cogmind --------- Core Integrity 0/250 Matter 300/300 Energy 100/100 System Corruption 0% Temperature Warm (196) Movement Hovering (66) Location -10/Subcaves Parts ------- > --- POWER (1) -------- (None) > --- PROPULSION (3) --- Improved Hover Unit Combat Airjet > --- UTILITY (2) ------ Small Storage Unit Makeshift Hacking Suite > --- WEAPON (2) ------- Makeshift Laser Makeshift Sword > --- INVENTORY (8) ---- Flight Unit Flight Unit Flight Unit Improved Heat Sink Huge Storage Unit Improved Terrain Scanner Autogun Battle Rifle Peak State ------------ > --- POWER ------------ Light Nuclear Core > --- PROPULSION ------- Improved Hover Unit Combat Airjet > --- UTILITY ---------- Small Storage Unit Makeshift Hacking Suite > --- WEAPON ----------- Makeshift Laser Makeshift Sword > --- INVENTORY -------- Flight Unit Flight Unit Flight Unit Improved Heat Sink Huge Storage Unit Improved Terrain Scanner Autogun Battle Rifle [Rating: 24] Favorites ----------- Power Light Ion Engine Engine Light Ion Engine Power Core Light Nuclear Core Propulsion Improved Hover Unit Wheel Wheel Hover Unit Improved Hover Unit Flight Unit Flight Unit Utility Small Storage Unit Device Structural Scanner Storage Small Storage Unit Processor Visual Processing Unit Hackware Makeshift Hacking Suite Weapon Autogun Energy Gun Makeshift Laser Ballistic Gun Autogun Special Weapon Mining Laser Slashing Weapon Makeshift Sword Build | -11 -10 -10 -10 ------- Run | Yrd Mat Min Sub Slots Evolved 1 | . 1 . . Power . | . . . . Propulsion 1 | . 1 . . Utility . | . . . . Weapon . | . . . . Parts Attached 31 | 5 16 4 6 Power 5 | . 2 2 1 Engine 4 | . 2 2 . Core 1 | . . . 1 Reactor . | . . . . Propulsion 12 | 3 7 1 1 Treads . | . . . . Leg . | . . . . Wheel 4 | 3 1 . . Hover 5 | . 3 1 1 Flight 3 | . 3 . . Utility 7 | . 5 1 1 Device 3 | . 2 1 . Storage 2 | . 2 . . Processor 1 | . 1 . . Hackware 1 | . . . 1 Protection . | . . . . Artifact . | . . . . Weapon 7 | 2 2 . 3 Energy Gun 1 | . . . 1 Energy Cannon . | . . . . Ballistic Gun 4 | 2 2 . . Ballistic Cannon . | . . . . Launcher . | . . . . Special Weapon 1 | . . . 1 Impact Weapon . | . . . . Slashing Weapon 1 | . . . 1 Piercing Weapon . | . . . . Special Melee Weapon . | . . . . Unidentified Prototypes . | . . . . Parts Lost 6 | . . 1 5 Power 1 | . . . 1 Propulsion 3 | . . 1 2 Utility 1 | . . . 1 Weapon 1 | . . . 1 Highest Loss Streak 1 | . . 1 1 To Critical Strikes . | . . . . Average Backups 5 | 2 4 5 7 Power . | . . . . Propulsion 1 | . 1 1 3 Utility 2 | . 1 2 2 Weapon 1 | . 1 2 1 Tool/Special . | . . . . Unused Backups 14 | . 4 2 8 Power . | . . . . Propulsion 5 | . 2 . 3 Utility 5 | . 1 1 3 Weapon 4 | . 1 1 2 Tool/Special . | . . . . Average Slot Usage (%) 91 | . 78 99 90 Engine 7 | . 5 12 3 Core 3 | . . . 8 Wheel 2 | . 12 . . Hover 30 | . 15 36 31 Flight 1 | . 7 . . Device 8 | . 5 12 7 Storage 10 | . 3 12 12 Energy Gun 4 | . . . 11 Ballistic Gun 14 | . 24 25 1 Special Weapon 1 | . . . 3 Slashing Weapon 2 | . . . 6 Peak Build Rating 24 | 4 14 14 24 Average Rating 13 | 3 8 13 19 On Entrance 7 | . 4 13 14 Avg Prop Armor Cover (%) 6 | . 6 . . Naked Turns . | . . . . Heaviest Build 15 | 4 15 15 15 Greatest Support 30 | 20 30 21 26 Greatest Overweight (x) 1 | 1 1 1 . Average Overweight (x) . | . . . . Largest Inventory Capacity 20 | 5 20 8 8 Average Capacity 7 | 5 5 8 8 Most Carried 8 | 5 6 8 8 Average Carried 5 | 2 4 5 7 Final Capacity 8 | 5 8 8 8 Final Carried 8 | 5 5 8 8 Class Distribution -------------------- 100% | Hacker-Mutant Dominant Class ---------------- Hacker-Mutant | -10/Materials Hacker-Mutant | -10/Mines Hacker-Mutant | -10/Subcaves Resources | -11 -10 -10 -10 ----------- Run | Yrd Mat Min Sub Matter Collected 1184 | 377 471 272 64 Remotely . | . . . . Salvage Created 1561 | 274 678 327 282 Parts 89 | 19 29 27 14 Haulers Intercepted 1 | . 1 . . Recyclers Shooed 8 | 1 6 1 . Parts Field Recycled . | . . . . Retrieved Matter . | . . . . Parts Self-Destructed . | . . . . Prevented . | . . . . Parts Restored . | . . . . Kills | -11 -10 -10 -10 ------- Run | Yrd Mat Min Sub Combat Hostiles Destroyed 22 | . 6 9 7 Melee 3 | . . . 3 Guns 19 | . 6 9 4 Classes Destroyed 12 | 3 5 2 2 Worker 1 | 1 . . . Builder 2 | . 1 1 . Tunneler 10 | 9 . 1 . Hauler 1 | . 1 . . Recycler 8 | 1 5 2 . Watcher 3 | . 3 . . Swarmer 10 | . 4 6 . Grunt 2 | . 2 . . Sentry 1 | . . . 1 Demolisher 1 | . . 1 . Subdweller 6 | . . . 6 Assembled 2 | . . 2 . Best Kill Streak 5 | 4 4 5 2 Combat Bots Only 2 | . 2 2 2 Max Kills in Single Turn 2 | 1 1 2 1 Gunslinging 1 | . . 1 . Exploded . | . . . . Melee 1 | . . . 1 Uniques/NPCs Destroyed . | . . . . Combat | -11 -10 -10 -10 -------- Run | Yrd Mat Min Sub Hostile Shots Fired 103 | . 25 42 36 Missed 31 | . 11 8 12 Hits 72 | . 14 34 24 Melee 2 | . . 2 . Projectile 70 | . 14 32 24 AOE 12 | . . 11 1 Critical Strikes 1 | . . 1 . Damage Taken 885 | . 85 452 348 Core 255 | . 10 115 130 Absorbed by Shields . | . . . . Ignored by Resistances 540 | . 58 277 205 Core Remaining (%) 100 | 100 . . . Volleys Fired 125 | 24 44 29 28 Largest 2 | 2 2 2 2 Hottest 250 | 40 46 46 250 Shots Fired 231 | 48 88 58 37 Gun 222 | 48 88 58 28 Cannon . | . . . . Launcher . | . . . . Special 9 | . . . 9 Kinetic 195 | 48 88 58 1 Thermal 36 | . . . 36 Explosive . | . . . . Electromagnetic . | . . . . Robot Hit Streak 23 | 16 23 15 17 Robot Miss Streak 2 | 1 1 2 1 Penetration Max . | . . . . Secondary Targets 4 | . 1 3 . Max Gunslinging Chain 1 | . 1 1 . Shots Hit Robots 191 | 41 73 42 35 Core Hits 64 | 12 23 20 9 Critical Kills . | . . . . Critical Parts Destroyed 2 | . 1 1 . Critical Strikes 7 | . 1 1 5 Burn 4 | . . . 4 Destroy 2 | . 1 1 . Sever 1 | . . . 1 Melee Attacks 37 | . . . 37 Impact . | . . . . Slashing 37 | . . . 37 Piercing . | . . . . Sneak Attacks . | . . . . Combat Hostiles . | . . . . Follow-up Attacks . | . . . . Damage Inflicted 3073 | 523 991 625 934 Guns 2582 | 523 991 625 443 Cannons . | . . . . Explosions . | . . . . Melee 467 | . . . 467 Ramming . | . . . . Kinetic 2139 | 523 991 625 . Thermal 467 | . . . 467 Explosive . | . . . . Electromagnetic . | . . . . Impact . | . . . . Slashing 467 | . . . 467 Piercing . | . . . . Highest Corruption . | . . . . Average Corruption . | . . . . Corruption Purged . | . . . . Corruption Blocked . | . . . . Overload Shots 6 | . . . 6 Effects 2 | . . . 2 Energy Bleed 1 | . . . 1 Heat Surge 1 | . . . 1 Overflow Damage . | . . . . Projectiles . | . . . . Explosions . | . . . . Melee . | . . . . Knockbacks . | . . . . Impact . | . . . . Kinetic . | . . . . Secondary . | . . . . Self-Inflicted Damage . | . . . . Shots . | . . . . Rammed . | . . . . Targets Rammed . | . . . . Kicked . | . . . . Crushed . | . . . . Highest Temperature 429 | 1 31 73 429 Average Temperature 49 | 1 14 17 165 Received Heat Transfer 205 | . 57 40 108 Siege Activations . | . . . . Martial Activations . | . . . . Shielding Activations . | . . . . Robots Disrupted . | . . . . Combat Hostiles . | . . . . Robots Corrupted . | . . . . Combat Hostiles . | . . . . Parts Fried . | . . . . Impact Corruptions . | . . . . Robots Melted . | . . . . Combat Hostiles . | . . . . Parts Melted 2 | . . . 2 Heat Transferred 1164 | . . . 1164 Parts Sabotaged . | . . . . Parts Stolen . | . . . . Parts Stripped . | . . . . Power Chain Reactions . | . . . . Alert | -11 -10 -10 -10 ------- Run | Yrd Mat Min Sub Maximum Alert Level . | . . . . Low Security (%) 100 | 100 100 100 . Level 1 . | . . . . Level 2 . | . . . . Level 3 . | . . . . Level 4 . | . . . . Level 5 . | . . . . High Security . | . . . . Max Security . | . . . . Peak Influence 84 | 10 69 84 . Initial 2 | . 2 . . Average 13 | 1 23 11 . Influence Increases 503 | 55 219 209 20 Destroy 0b10 Robot/C 280 | . 120 140 20 Destroy 0b10 Robot/NC 125 | 55 50 20 . Destroy Leader 78 | . 38 40 . Allied During Kill 5 | . . 5 . Successful Hack 11 | . 11 . . Disable Machine 4 | . . 4 . Influence Decreases 503 | 50 224 209 20 Entered New Map 3 | . 3 . . Time Decay 500 | 50 221 209 20 Squads Dispatched . | . . . . Investigation . | . . . . Extermination . | . . . . Reinforcement . | . . . . Assault . | . . . . Garrison . | . . . . Intercept . | . . . . Searches Triggered . | . . . . Construction Impeded . | . . . . Haulers Reinforced . | . . . . Active Scanning Responses . | . . . . Cargo Convoy Interrupts . | . . . . Stealth | -11 -10 -10 -10 --------- Run | Yrd Mat Min Sub Distress Signals . | . . . . Communications Jammed . | . . . . Distress Signals . | . . . . Times Spotted 49 | . 9 28 12 Peak Tracking Total 16 | . 4 16 2 Tactical Retreats . | . . . . Traps | -11 -10 -10 -10 ------- Run | Yrd Mat Min Sub Traps Triggered . | . . . . Indirectly . | . . . . Trap Hack Attempts . | . . . . Triggered . | . . . . Disarmed . | . . . . Reprogrammed . | . . . . Reused . | . . . . Traps Extracted . | . . . . Installed . | . . . . Triggered . | . . . . Machines | -11 -10 -10 -10 ---------- Run | Yrd Mat Min Sub Machines Disabled 1 | . . 1 . Max in Single Turn 1 | . . 1 . Machines Repaired . | . . . . Machines Dismantled . | . . . . Machines Sabotaged . | . . . . Overloaded Fab Kills . | . . . . Hacking | -11 -10 -10 -10 --------- Run | Yrd Mat Min Sub Machines Accessed 6 | . 6 . . Terminals 5 | . 5 . . Fabricators . | . . . . Repair Stations . | . . . . Recycling Units 1 | . 1 . . Scanalyzers . | . . . . Garrison Access . | . . . . Total Hacks 15 | . 15 . . Successful 10 | . 10 . . Failed 5 | . 5 . . Catastrophic . | . . . . Database Lockouts . | . . . . Manual 8 | . 8 . . Terminals 12 | . 12 . . Fabricators . | . . . . Repair Stations . | . . . . Recycling Units 3 | . 3 . . Scanalyzers . | . . . . Garrison Access . | . . . . Terminal Hacks 1 | . 1 . . Robot Analysis 1 | . 1 . . Fabricator Hacks . | . . . . Repair Station Hacks . | . . . . Recycling Unit Hacks 3 | . 3 . . Report Inventory 1 | . 1 . . Retrieve Matter 1 | . 1 . . Retrieve Components 1 | . 1 . . Scanalyzer . | . . . . Garrison Access Hacks . | . . . . Unauthorized Hacks 5 | . 5 . . Terminals 5 | . 5 . . Botnet 5 | . 5 . . Fabricators . | . . . . Repair Stations . | . . . . Recycling Units . | . . . . Scanalyzers . | . . . . Garrison Access . | . . . . Data Cores Recovered . | . . . . Used . | . . . . Hacking Detections 5 | . 5 . . Full Trace Events . | . . . . Feedback Events . | . . . . Feedback Blocked . | . . . . Robot Schematics Acquired . | . . . . Robots Built . | . . . . Authchips . | . . . . Time . | . . . . Total Robot Build Rating . | . . . . Part Schematics Acquired . | . . . . Parts Built . | . . . . Authchips . | . . . . Time . | . . . . Total Part Build Rating . | . . . . Part Studies Acquired . | . . . . Parts Repaired . | . . . . Time . | . . . . Parts Recycled . | . . . . Recycled Matter . | . . . . Retrieved Matter . | . . . . Retrieved Components 4 | . 4 . . Parts Scanalyzed . | . . . . Part Schematics Acquired . | . . . . Parts Damaged . | . . . . Bothacking | -11 -10 -10 -10 ------------ Run | Yrd Mat Min Sub Used RIF Installer . | . . . . Robots Hacked . | . . . . Non-combat . | . . . . Combat . | . . . . Robot Hacks Applied . | . . . . Relay Couplers Released . | . . . . Fabnet Peak Effective % . | . . . . Robots Rewired . | . . . . Allies Hacked . | . . . . Hacks Repelled . | . . . . Allies | -11 -10 -10 -10 -------- Run | Yrd Mat Min Sub Total Allies 3 | . . 3 . Largest Group 3 | . . 3 3 Highest-Rated Group 40 | . . 40 40 Highest-Rated Ally 16 | . . 16 16 Total Orders . | . . . . Ally Attacks 43 | . . . 43 Total Damage 566 | . . . 566 Kills 3 | . . . 3 Allies Corrupted . | . . . . Allies Melted . | . . . . Intel | -11 -10 -10 -10 ------- Run | Yrd Mat Min Sub Active Infowar (turns) 1742 | . 266 853 623 Optics 121 | . 121 . . Structural 1699 | . 223 853 623 Robot Analysis Total 1 | . 1 . . Derelict Logs Recovered 2 | . . . 2 Drone Launches . | . . . . Drone Recoveries . | . . . . Exploration | -11 -10 -10 -10 ------------- Run | Yrd Mat Min Sub Turns Passed 2582 | 298 459 853 972 Spaces Moved 2629 | 151 530 786 1162 Core 23 | 23 . . . Treads . | . . . . Legs . | . . . . Wheels 226 | 128 98 . . Hover 2234 | . 286 786 1162 Flight 146 | . 146 . . Fastest Speed 34 | 50 34 52 52 Average Speed 58 | 77 54 53 60 Slowest Speed 120 | 100 120 116 66 Overloaded Moves . | . . . . Propulsion Burnouts . | . . . . Robots Hopped 1 | . 1 . . Potential Cave-ins . | . . . . Cave-ins Triggered . | . . . . Exploration Rate (%) 59 | 4 84 96 54 Regions Visited 3 Branch Regions 2 Pre-discovered Areas 2 | . . 1 1 Known Exits Taken 3 | 1 1 1 . Unknown Exits Taken . | . . . . Scrap Searched 9 | . . 1 8 Spaces Dug 9 | . . . 9 Terrain Destroyed 9 | . . . 9 Melee 9 | . . . 9 Projectile . | . . . . AOE . | . . . . Terrain Rammed . | . . . . Walls Destroyed . | . . . . Machines Disabled . | . . . . Actions | -11 -10 -10 -10 --------- Run | Yrd Mat Min Sub Total 3416 | 284 615 1175 1342 Wait 539 | 92 . 344 103 Move 2624 | 150 527 785 1162 Hop 1 | . 1 . . Pick Up 31 | 11 8 8 4 Fast Attach 12 | . 11 . 1 Attach 8 | 4 1 1 2 Detach 3 | . 3 . . Swap 12 | 1 5 3 3 Drop 24 | 2 15 5 2 Fire 125 | 24 44 29 28 Melee 37 | . . . 37 Ram . | . . . . Kick . | . . . . Crush . | . . . . Escape Stasis . | . . . . Rewire . | . . . . Trap . | . . . . Miscellaneous . | . . . . Route ------- -11/Scrapyard -10/Materials (discovered 4 exits: *Mat x2 / *Min x2) -10/Mines (discovered 3 exits: *Mat x2 / *Sub) -10/Subcaves (discovered 2 exits: *Mat / [*Scr]) History --------- Turn | Location | Event 7 | -11/Scrapyard | Identified exit to Materials 7 | -11/Scrapyard | Discovered exit to Materials (range 15) 299 | -11/Scrapyard | Entered Materials 299 | -10/Materials | Evolved 1 slot: Propulsion x1 300 | -10/Materials | Build established: Hacker-Mutant 332 | -10/Materials | Identified exit to Mines 332 | -10/Materials | Discovered exit to Mines (range 13) 474 | -10/Materials | Identified exit to Materials 474 | -10/Materials | Discovered exit to Materials (range 15) 560 | -10/Materials | Discovered exit to Materials (range 15) 680 | -10/Materials | Discovered exit to Mines (range 12) 758 | -10/Materials | Entered Mines 759 | -10/Mines | Assembled infested the area 764 | -10/Mines | Assisted by a Guerilla fighting off Assembled 1058 | -10/Mines | Discovered exit to Materials (range 4) 1067 | -10/Mines | Found a hidden stash of uninstalled traps 1121 | -10/Mines | Received a Rocket Launcher from a helpful Derelict 1248 | -10/Mines | Assisted by bots powering up and referring to "LRC-V3" 1260 | -10/Mines | Learned location of Storage (-8) 1264 | -10/Mines | Identified exit to Subcaves 1264 | -10/Mines | Discovered exit to Subcaves (range 13) 1442 | -10/Mines | Discovered exit to Materials (range 6) 1611 | -10/Mines | Entered Subcaves 1611 | -10/Subcaves | Accompanied by 3 allies 1612 | -10/Subcaves | Approached by a straggling Scientist 1626 | -10/Subcaves | Learned location of Zion (-6) 1626 | -10/Subcaves | Met a Zionite searching for "candidates" 1695 | -10/Subcaves | Core integrity fell below 50% 1700 | -10/Subcaves | Shifting Twisted Machinery released Sub. Laser 1730 | -10/Subcaves | Shifting Twisted Machinery released Flamer 1740 | -10/Subcaves | Shifting Twisted Machinery released Sub. Shrapnel Launcher 1747 | -10/Subcaves | Shifting Twisted Machinery released Battle Rifle 1827 | -10/Subcaves | Learned Materials garrison access intel 1845 | -10/Subcaves | Learned Materials garrison access intel 2283 | -10/Subcaves | A swath of the cavern ceiling suddenly collapsed 2463 | -10/Subcaves | Disturbed a concealed Subdweller 2537 | -10/Subcaves | Identified exit to Materials 2537 | -10/Subcaves | Discovered exit to Materials (range 10) 2569 | -10/Subcaves | A swath of the cavern ceiling suddenly collapsed 2569 | -10/Subcaves | Core integrity fell below 20% 2583 | -10/Subcaves | Destroyed by XI-ZNG(R) with Subdweller Beam Cannon Last Messages --------------- 02455_ Found Sub. Beam Cannon. 02455_ Found Mak. Hacking Suite. 02455_ Found 36 Matter. 02456_ Acquired Mak. Hacking Suite. 02458_ Acquired 10 matter. 02463_ 4N-PSA(R) angrily emerges from the Twisted Machinery. 02468_ 4N-PSA(R) destroyed. 02479_ Subatomizers dissect the Beam Rifle. 02516_ UT-9IT(R): "LEAVESUB!" 02528_ UT-9IT(R) destroyed. 02537_ EXIT=FOUND: MATERIALS 02565_ Trooper 1a destroyed. 02566_ 70-BY9(R) suffers critical hit (Burn). 02569_ Multitool crushed. A swath of the cavern ceiling suddenly collapses. 02570_ Overload: Energy bleed (-48). 02572_ Overload: Heat surge (+174). 02583_ Lgt. Nuclear Core destroyed. Map ----- +----------------------------------------------------+ | ?????????????????????????????????????????????????? | | ?????????????????????????????????????????????????? | | ?????????????????????????????????????????????????? | | ?????????????????????????????????????????????????? | | ?????????????????????????????????????????????????? | | ?????????????????????????????????????????????????? | | ?????????????????????????????????????????????????? | | ?????????????????????????????????????????????????? | | ?????????????????????????????????????????????????? | | ?????????????????????????????????????????????????? | | ?????????????????????????????????????????????????? | | ?????????????????????????????????????????????????? | | ?????????????????????????????????????????????????? | | ?????????????????????????????????????????????????? | | ??????????????????????????????# ?????????????????? | | ??????????????????????????????"""????????????????? | | ?????????????????????????????"" "##??????????????? | | ?????????????????????????????| " ##?????????????? | | ????????????????????????????? " #?????????????? | | ????????????????????????????? ""##"#?????????????? | | ???????????????????????????? #"" #?????????????? | | ???????????????????????????? #"" ###????????????? | | ????????????????????????????##"##"# #????????????? | | ???????????????######?????## """ #??????????????? | | ??????????????## ####### # #???????????????? | | ??????????????# % % # @# ##??????????????? | | ??????????????# < R% #??????????????? | | ??????????????## ## ##*R #?????????????? | | ???????????????# ####"; #?????????????? | | ???????????????## # %#??# % ;; #?????????????? | | ???????????##### # ###?# ;;;# #?????????????? | | ???????????# ### # ###! "" #?##?????????????? | | ???????????# [% #####????????????????? | | ???????????# ! #??####??????????????? | | ???????????##### ## %# %%%#### ##?????????????? | | ???????????????########## % #?????????????? | | ????????????????????????# % #?????????????? | | ????????????????????????## ##????????????? | | ?????????????????????????## #????????????? | | ??????????????????????????#### #????????????? | | ????????????????????????????# # "#????????????? | | ????????????????????????????# %#""#????????????? | | ????????????????????????????## ##"#????????????? | | ?????????????????????????????# #?##????????????? | | ????????????????????????????## ##???????????????? | | ????????????????????????????# " #???????????????? | | ????????????????????????##### ###??????????????? | | ????????????????????????###### ####?????????????? | | ???????????#######????### #" ###?????????????? | | ########??########????#""""""] #?????????????? | +----------------------------------------------------+ Best States ------------- Heat Dissipation 25 Energy Generation 14 Energy Capacity 160 Matter Stores 300 Matter Capacity 300 Sight Range 18 Terrain Scan Density 10 Resistance: KI 35 Resistance: TH 35 Resistance: EX 35 Resistance: EM 35 Resistance: I 35 Resistance: S 35 Resistance: P 35 Evasion (%) 63 Offensive Hacking 31 Item Schematics ----------------- None Robot Schematics ------------------ None Fabricated ------------ Nothing Repaired ---------- Nothing Studied --------- None Alien Tech Used ----------------- None Achievements -------------- None Challenges ------------ None Game ------ Seed CannonSuspensionLog Manual? 0 Play Time 00:26:14 Cumulative 198.7 hours Start 2025.12.15 @ 10:51:39 End 2025.12.15 @ 11:19:52 Sessions 1 Manual Loads 0 Difficulty Explorer Special Mode None Game No. 296 Rogue 0 Adventurer 0 Explorer 296 Win Type - Total 0 Types 0/0/0/0/0/0/0/0/0/0 Lore% 71 Gallery% 67 Achievement% 53 Wizard Run 0 Options --------- Layout 1 ASCII 0 Keyboard 0 Movement Mouse Keybinds 0 Fullscreen 1 Font 24/Smallcaps Map View 50x35 Zoom Use 0% Tactical HUD 1 Map Filters NONE Filters NONE Steam 1 RUN: 588a98b8-3b1d-4b10-9165-2492169b6dca